{"text_format":"3","workbook":"xlsx","n_sheets":2,"sheets":["Aloitus","Joulubudjetin suunnittelu"],"not_rendered":{"defined_names":1},"read":"whole","date_system":"1900"}

{"sheet":"Aloitus","index":0,"n_rows":7,"n_cols":2,"rows_kept":7}
[null,"TIETOJA TÄSTÄ MALLISTA"]
[null,"Seuraa kulujasi tämän Joulubudjetin suunnittelu -laskentataulukon avulla."]
[null,"Kirjoita eri kohteiden budjetti ja todellinen kulut taulukoihin."]
[null,"Joulubudjetti, todellinen kulutettu kokonaissumma ja erotus lasketaan automaattisesti puolestasi."]
[null,"Huomautus: "]
[null,"Lisäohjeita on JOULUBUDJETIN SUUNNITTELU -laskentataulukon sarakkeessa A. Tämä teksti on piilotettu tarkoituksella. Jos haluat poistaa tekstin, valitse sarake A ja valitse sitten POISTA. Jos haluat tuoda tekstin näkyviin, valitse sarake A ja muuta sitten fonttiväriä."]
[null,"Jos haluat lisätietoja jostakin taulukosta, paina kyseisessä taulukossa VAIHTO ja sitten F10, valitse TAULUKKO-vaihtoehto ja valitse sitten VAIHTOEHTOINEN TEKSTI."]

{"sheet":"Joulubudjetin suunnittelu","index":1,"n_rows":32,"n_cols":12,"rows_kept":32,"merged":[[1,1,5,4],[2,8,2,9],[3,8,3,9],[4,8,4,9],[6,1,6,4],[6,8,6,11],[15,1,15,4],[15,8,15,11],[25,1,25,4],[25,8,25,11]]}
["Kirjoita jokaisen luokan budjetti ja todellinen kulut niitä vastaaviin taulukoihin tässä laskentataulukossa. Tämän sarakkeen soluissa on hyödyllisiä ohjeita tämän laskentataulukon käyttöön. Aloita siirtymällä nuolella alaspäin. "]
["Tämän laskentataulukon otsikko on solussa oikealla.","Joulubudjetti \nSuunnittelu"]
["Joulubudjetti lasketaan automaattisesti soluun K3.",{"$nulls":7},"JOULUBUDJETTI",null,{"$f":"SUM(Lahjat[Budjetti],Paketointi[Budjetti],(Matkakulut[Budjetti],(Ateriat[Budjetti],(Viihde[Budjetti],Sekalaiset[Budjetti]))))","v":{"v":750,"d":"750.00 €"}}]
["Todellinen kulutettu lasketaan automaattisesti soluun K4.",{"$nulls":7},"TODELLINEN KULUTETTU",null,{"$f":"SUM((Lahjat[Todellinen],(Paketointi[Todellinen],(Matkakulut[Todellinen],(Ateriat[Todellinen],(Viihde[Todellinen],(Sekalaiset[Todellinen])))))))","v":{"v":820,"d":"820.00 €"}}]
["Erotus lasketaan automaattisesti soluun K5. Seuraava ohje on solussa A7.",{"$nulls":7},"EROTUS (yli/alle budjetin)",null,{"$f":"SUM(K3-K4)","v":{"v":-70,"d":"-70.00 €"}}]
[]
["Lahjat-otsikko on solussa oikealla ja Jouluateriat-otsikko solussa I7.","Lahjat",{"$nulls":6},"Jouluateriat"]
["Kirjoita kulut lahjat oikealla olevasta solusta alkavaan taulukkoon ja kulut ateriat solusta I8 alkavaan taulukkoon. Seuraava ohje on solussa A16.","Kohde","Budjetti","Todellinen","Erotus",{"$nulls":3},"Kohde","Budjetti","Todellinen","Erotus"]
[null,"Perhe",{"v":500,"d":"500.00 €"},{"v":495,"d":"495.00 €"},{"$f":"Lahjat[[#This Row],[Budjetti]]-Lahjat[[#This Row],[Todellinen]]","v":{"v":5,"d":"5.00 €"}},{"$nulls":3},"Ruokatarvikkeet",null,null,{"$f":"Ateriat[[#This Row],[Budjetti]]-Ateriat[[#This Row],[Todellinen]]","v":{"v":0,"d":"0.00 €"}}]
[null,"Ystävät",{"v":250,"d":"250.00 €"},{"v":325,"d":"325.00 €"},{"$f":"Lahjat[[#This Row],[Budjetti]]-Lahjat[[#This Row],[Todellinen]]","v":{"v":-75,"d":"-75.00 €"}},{"$nulls":3},"Juomauhrit",null,null,{"$f":"Ateriat[[#This Row],[Budjetti]]-Ateriat[[#This Row],[Todellinen]]","v":{"v":0,"d":"0.00 €"}}]
[null,"Työtoverit",null,null,{"$f":"Lahjat[[#This Row],[Budjetti]]-Lahjat[[#This Row],[Todellinen]]","v":{"v":0,"d":"0.00 €"}},{"$nulls":3},"Koristeet",null,null,{"$f":"Ateriat[[#This Row],[Budjetti]]-Ateriat[[#This Row],[Todellinen]]","v":{"v":0,"d":"0.00 €"}}]
[null,"Opettajat, lastenhoitajat, lastenvahdit yms.",null,null,{"$f":"Lahjat[[#This Row],[Budjetti]]-Lahjat[[#This Row],[Todellinen]]","v":{"v":0,"d":"0.00 €"}},{"$nulls":3},"Muut (jos haluat lisätä rivin, siirry sarkaimella tämän rivin viimeiseen sarakkeeseen)",null,null,{"$f":"Ateriat[[#This Row],[Budjetti]]-Ateriat[[#This Row],[Todellinen]]","v":{"v":0,"d":"0.00 €"}}]
[null,"Hyväntekeväisyyslahjoitukset",null,null,{"$f":"Lahjat[[#This Row],[Budjetti]]-Lahjat[[#This Row],[Todellinen]]","v":{"v":0,"d":"0.00 €"}},{"$nulls":3},"Summa",{"$f":"SUBTOTAL(109,Ateriat[Budjetti])","v":{"v":0,"d":"0.00 €"}},{"$f":"SUBTOTAL(109,Ateriat[Todellinen])","v":{"v":0,"d":"0.00 €"}},{"$f":"SUBTOTAL(109,Ateriat[Erotus])","v":{"v":0,"d":"0.00 €"}}]
[null,"Muut (jos haluat lisätä rivin, siirry sarkaimella tämän rivin viimeiseen sarakkeeseen)",null,null,{"$f":"Lahjat[[#This Row],[Budjetti]]-Lahjat[[#This Row],[Todellinen]]","v":{"v":0,"d":"0.00 €"}}]
[null,"Summa",{"$f":"SUBTOTAL(109,Lahjat[Budjetti])","v":{"v":750,"d":"750.00 €"}},{"$f":"SUBTOTAL(109,Lahjat[Todellinen])","v":{"v":820,"d":"820.00 €"}},{"$f":"SUBTOTAL(109,Lahjat[Erotus])","v":{"v":-70,"d":"-70.00 €"}}]
["Paketointi-otsikko on solussa oikealla ja Viihde-otsikko solussa I16.","Paketointi",{"$nulls":6},"Viihde"]
["Kirjoita kulut paketointi oikealla olevasta solusta alkavaan taulukkoon ja kulut viihde solusta I17 alkavaan taulukkoon. Seuraava ohje on solussa A26.","Kohde","Budjetti","Todellinen","Erotus",{"$nulls":3},"Kohde","Budjetti","Todellinen","Erotus"]
[null,"Lahjapaperi",null,null,{"$f":"Paketointi[[#This Row],[Budjetti]]-Paketointi[[#This Row],[Todellinen]]","v":{"v":0,"d":"0.00 €"}},{"$nulls":3},"Juhla-apu (baarimikko, pitopalvelu, siivoojat yms.)",null,null,{"$f":"Viihde[[#This Row],[Budjetti]]-Viihde[[#This Row],[Todellinen]]","v":{"v":0,"d":"0.00 €"}}]
[null,"Lipukkeet",null,null,{"$f":"Paketointi[[#This Row],[Budjetti]]-Paketointi[[#This Row],[Todellinen]]","v":{"v":0,"d":"0.00 €"}},{"$nulls":3},"Koristeet",null,null,{"$f":"Viihde[[#This Row],[Budjetti]]-Viihde[[#This Row],[Todellinen]]","v":{"v":0,"d":"0.00 €"}}]
[null,"Tarvikkeet (nauha, teippi yms.)",null,null,{"$f":"Paketointi[[#This Row],[Budjetti]]-Paketointi[[#This Row],[Todellinen]]","v":{"v":0,"d":"0.00 €"}},{"$nulls":3},"Ruoka ja juoma",null,null,{"$f":"Viihde[[#This Row],[Budjetti]]-Viihde[[#This Row],[Todellinen]]","v":{"v":0,"d":"0.00 €"}}]
[null,"Laatikot",null,null,{"$f":"Paketointi[[#This Row],[Budjetti]]-Paketointi[[#This Row],[Todellinen]]","v":{"v":0,"d":"0.00 €"}},{"$nulls":3},"Vaatteet",null,null,{"$f":"Viihde[[#This Row],[Budjetti]]-Viihde[[#This Row],[Todellinen]]","v":{"v":0,"d":"0.00 €"}}]
[null,"Postimaksut",null,null,{"$f":"Paketointi[[#This Row],[Budjetti]]-Paketointi[[#This Row],[Todellinen]]","v":{"v":0,"d":"0.00 €"}},{"$nulls":3},"Liput",null,null,{"$f":"Viihde[[#This Row],[Budjetti]]-Viihde[[#This Row],[Todellinen]]","v":{"v":0,"d":"0.00 €"}}]
[null,"Muut (jos haluat lisätä rivin, siirry sarkaimella tämän rivin viimeiseen sarakkeeseen)",null,null,{"$f":"Paketointi[[#This Row],[Budjetti]]-Paketointi[[#This Row],[Todellinen]]","v":{"v":0,"d":"0.00 €"}},{"$nulls":3},"Ravintolapäivälliset",null,null,{"$f":"Viihde[[#This Row],[Budjetti]]-Viihde[[#This Row],[Todellinen]]","v":{"v":0,"d":"0.00 €"}}]
[null,"Summa",{"$f":"SUBTOTAL(109,Paketointi[Budjetti])","v":{"v":0,"d":"0.00 €"}},{"$f":"SUBTOTAL(109,Paketointi[Todellinen])","v":{"v":0,"d":"0.00 €"}},{"$f":"SUBTOTAL(109,Paketointi[Erotus])","v":{"v":0,"d":"0.00 €"}},{"$nulls":3},"Muut (jos haluat lisätä rivin, siirry sarkaimella tämän rivin viimeiseen sarakkeeseen)",null,null,{"$f":"Viihde[[#This Row],[Budjetti]]-Viihde[[#This Row],[Todellinen]]","v":{"v":0,"d":"0.00 €"}}]
[{"$nulls":8},"Summa",{"$f":"SUBTOTAL(109,Viihde[Budjetti])","v":{"v":0,"d":"0.00 €"}},{"$f":"SUBTOTAL(109,Viihde[Todellinen])","v":{"v":0,"d":"0.00 €"}},{"$f":"SUBTOTAL(109,Viihde[Erotus])","v":{"v":0,"d":"0.00 €"}}]
["Matkakulut-otsikko on solussa oikealla ja Sekalaiset-otsikko solussa I26.","Matkakulut",{"$nulls":6},"Sekalaiset"]
["Kirjoita kulut matkakulut oikealla olevasta solusta alkavaan taulukkoon ja sekalaiset kulut solusta I27 alkavaan taulukkoon.","Kohde","Budjetti","Todellinen","Erotus",{"$nulls":3},"Kohde","Budjetti","Todellinen","Erotus"]
[null,"Lentomatkat",null,null,{"$f":"Matkakulut[[#This Row],[Budjetti]]-Matkakulut[[#This Row],[Todellinen]]","v":{"v":0,"d":"0.00 €"}},{"$nulls":3},"Lomavalokuvat",null,null,{"$f":"Sekalaiset[[#This Row],[Budjetti]]-Sekalaiset[[#This Row],[Todellinen]]","v":{"v":0,"d":"0.00 €"}}]
[null,"Majoitus",null,null,{"$f":"Matkakulut[[#This Row],[Budjetti]]-Matkakulut[[#This Row],[Todellinen]]","v":{"v":0,"d":"0.00 €"}},{"$nulls":3},"Polttoaine ",null,null,{"$f":"Sekalaiset[[#This Row],[Budjetti]]-Sekalaiset[[#This Row],[Todellinen]]","v":{"v":0,"d":"0.00 €"}}]
[null,"Liikkuminen",null,null,{"$f":"Matkakulut[[#This Row],[Budjetti]]-Matkakulut[[#This Row],[Todellinen]]","v":{"v":0,"d":"0.00 €"}},{"$nulls":3},"Muut (jos haluat lisätä rivin, siirry sarkaimella tämän rivin viimeiseen sarakkeeseen)",null,null,{"$f":"Sekalaiset[[#This Row],[Budjetti]]-Sekalaiset[[#This Row],[Todellinen]]","v":{"v":0,"d":"0.00 €"}}]
[null,"Muut (jos haluat lisätä rivin, siirry sarkaimella tämän rivin viimeiseen sarakkeeseen)",null,null,{"$f":"Matkakulut[[#This Row],[Budjetti]]-Matkakulut[[#This Row],[Todellinen]]","v":{"v":0,"d":"0.00 €"}},{"$nulls":3},"Summa",{"$f":"SUBTOTAL(109,Sekalaiset[Budjetti])","v":{"v":0,"d":"0.00 €"}},{"$f":"SUBTOTAL(109,Sekalaiset[Todellinen])","v":{"v":0,"d":"0.00 €"}},{"$f":"SUBTOTAL(109,Sekalaiset[Erotus])","v":{"v":0,"d":"0.00 €"}}]
[null,"Summa",{"$f":"SUBTOTAL(109,Matkakulut[Budjetti])","v":{"v":0,"d":"0.00 €"}},{"$f":"SUBTOTAL(109,Matkakulut[Todellinen])","v":{"v":0,"d":"0.00 €"}},{"$f":"SUBTOTAL(109,Matkakulut[Erotus])","v":{"v":0,"d":"0.00 €"}}]